Cogmind - Beta 14 @@@ ROGUE MODE // 2024.12.19 @ 21:28:27 Player: sve9 Result: Escaped! Performance ------------- Evolutions (9) 4500 Regions Visited (23) 4600 Robots Destroyed (366) 1830 Value Destroyed (19847) 19847 Prototype IDs (35) 700 Alien Tech Used (4) 800 Bonus (16821) 16821 TOTAL SCORE: 49098 Bonus ------- High Alert Combat Kills 4326 Follower Combat Kills 4699 Entered Garrisons 800 Used RIF Installer 2500 Network Hubs Disabled 200 Built Enhanced Grunts 300 Met R17 at Cetus 500 Met R17 at Research 2000 Win 3000 Friendly Fire -1504 Cogmind --------- Core Integrity 1503/1600 Matter 241/300 Energy 664/690 System Corruption 7% Temperature Cool (13) Movement Treading (157) Location To Epsilon Eridani Parts ------- > --- POWER (3) -------- Quantum Reactor Quantum Reactor Light Quantum Reactor > --- PROPULSION (7) --- Advanced Medium Treads Armored Heavy Treads Armored Heavy Treads Biometal Heavy Treads > --- UTILITY (11) ----- Advanced Heat Sink Advanced Heat Sink Advanced Heat Sink Advanced Heat Sink Advanced Heat Sink High-capacity Storage Unit Advanced Sensor Array Advanced Signal Interpreter Improved Terrain Scanner (fused) Advanced Weapon Cycler Relay Coupler [NC] (8) > --- WEAPON (4) ------- Enhanced Quantum Rifle KE Penetrator Railgun Advanced KE Penetrator > --- INVENTORY (20) --- Particle Reactor Medium Treads Medium Treads Advanced Energy Well (500) Matter Compressor (250) Advanced Sensor Array Relay Coupler [NC] (48) High-powered Tractor Beam Core Reset Matrix Terrabomb Heavy Wave Gun Enhanced Nova Cannon Railgun Linear Accelerator Mini Smartbomb Launcher Advanced Micro-nuke Launcher Advanced Remote Datajack Force Lance Peak State ------------ > --- POWER ------------ Quantum Reactor Quantum Reactor > --- PROPULSION ------- Biometal Medium Treads Biometal Medium Treads Armored Heavy Treads Centrium Heavy Treads > --- UTILITY ---------- Advanced Cooling System High-capacity Storage Unit Advanced Sensor Array Advanced Signal Interpreter Improved Terrain Scanner Advanced Weapon Cycler Centrium Medium Armor Plating Centrium Medium Armor Plating Experimental Thermal Shield Phase Redirector Relay Coupler [NC] > --- WEAPON ----------- Heavy Wave Gun Heavy Wave Gun Advanced KE Penetrator Advanced KE Penetrator > --- INVENTORY -------- Quantum Reactor Quantum Reactor Advanced Energy Well Matter Compressor Centrium Medium Armor Plating Centrium Medium Armor Plating Relay Coupler [NC] High-powered Tractor Beam Core Reset Matrix Terrabomb Enhanced Quantum Rifle Railgun Railgun Advanced KE Penetrator Linear Accelerator Mini Smartbomb Launcher Advanced Micro-nuke Launcher Advanced Remote Datajack Force Lance [Rating: 185] Favorites ----------- Power Quantum Reactor Engine Cooled Deuterium Engine Power Core Reinforced Fission Core Reactor Quantum Reactor Propulsion Light Treads Treads Light Treads Leg Carbon-fiber Leg Wheel Armored Huge Wheel Flight Unit Electron Diverter Utility High-capacity Storage Unit Device Improved Terrain Scanner Storage High-capacity Storage Unit Processor Advanced Signal Interpreter Hackware Relay Coupler [NC] Protection Centrium Medium Armor Plating Artifact Phase Redirector Weapon Advanced KE Penetrator Energy Gun Heavy Particle Gun Energy Cannon Advanced Beam Cannon Ballistic Gun Advanced KE Penetrator Ballistic Cannon Heavy Mass Driver Launcher Mini Smartbomb Launcher Special Weapon Improved Remote Datajack Impact Weapon Core Stripper Slashing Weapon Scythe Piercing Weapon Force Lance Special Melee Weapon Improved Datajack Build | -11 -10 -9 -8 -8 -8 -8 -7 -7 -7 -7 -5 -5 -5 -5 -4 -4 -4 -4 -4 -3 -3 -2 -1 ------- Run | Yrd Mat Mat Mat Gar Mat Gar Fac Sto Rec Scr Fac Gar Fac Gar Fac Ext Cet Arc Hub Res Qua Res Acc Slots Evolved 18 | . . 2 2 . . . 2 . . . 4 . . . 2 . . . . 2 . 2 2 Power 2 | . . . . . . . . . . . . . . . . . . . . 1 . . 1 Propulsion 5 | . . . 1 . . . . . . . 1 . . . . . . . . 1 . 1 1 Utility 9 | . . . 1 . . . 2 . . . 3 . . . 2 . . . . . . 1 . Weapon 2 | . . 2 . . . . . . . . . . . . . . . . . . . . . Parts Attached 491 | 7 1 10 51 34 21 13 12 23 2 3 11 31 30 52 26 29 13 . 6 12 40 34 30 Power 30 | 1 . 2 4 1 3 1 1 2 . . . . 2 3 . 1 1 . . 1 4 2 1 Engine 9 | 1 . 2 . 1 . . 1 2 . . . . 1 1 . . . . . . . . . Core 12 | . . . 4 . 3 1 . . . . . . 1 2 . 1 . . . . . . . Reactor 9 | . . . . . . . . . . . . . . . . . 1 . . 1 4 2 1 Propulsion 66 | 2 . 1 14 3 6 . 3 1 . 1 2 4 3 9 1 2 1 . 1 2 2 3 5 Treads 52 | 2 . 1 12 2 6 . 2 . . 1 2 2 1 5 1 2 1 . 1 1 2 3 5 Leg 3 | . . . . . . . . . . . . . . 3 . . . . . . . . . Wheel 10 | . . . 2 1 . . 1 1 . . . 2 2 1 . . . . . . . . . Hover . | . . . . . . . . . . . . . . . . . . . . . . . . Flight 1 | . . . . . . . . . . . . . . . . . . . . 1 . . . Utility 153 | 2 1 1 12 8 2 6 3 4 1 1 5 9 5 13 10 10 7 . 1 2 21 15 14 Device 61 | 1 . . 4 1 1 . . 1 . . 3 1 . 4 3 7 3 . . 1 12 9 10 Storage 7 | 1 . 1 2 . . . . . . . . 1 . . . . 1 . . . . . 1 Processor 6 | . 1 . 1 . . . . . . 1 . . . . . . 1 . . . . 2 . Hackware 32 | . . . . 6 . 5 2 1 . . . 4 3 6 2 2 . . 1 . . . . Protection 44 | . . . 5 1 1 1 1 2 1 . 2 3 2 3 5 1 2 . . 1 6 4 3 Artifact 3 | . . . . . . . . . . . . . . . . . . . . . 3 . . Weapon 242 | 2 . 6 21 22 10 6 5 16 1 1 4 18 20 27 15 16 4 . 4 7 13 14 10 Energy Gun 58 | 1 . 4 7 7 3 2 2 5 1 . 1 4 3 4 1 4 3 . . . 3 2 1 Energy Cannon 2 | . . 1 . . . . . . . . . . . . . . . . . 1 . . . Ballistic Gun 63 | 1 . 1 10 4 2 1 1 4 . 1 1 4 5 5 1 2 1 . 2 2 3 7 5 Ballistic Cannon 6 | . . . . . . . . . . . . . 3 . 1 1 . . . . . 1 . Launcher 25 | . . . 4 4 1 1 . 2 . . . 1 1 3 3 3 . . . 1 . . 1 Special Weapon 39 | . . . . . . 1 1 4 . . 1 3 6 7 4 4 . . 1 3 2 1 1 Impact Weapon 1 | . . . . . . . . . . . . . . . . . . . . . 1 . . Slashing Weapon 34 | . . . . 4 2 1 1 1 . . 1 6 2 8 5 2 . . 1 . . . . Piercing Weapon 9 | . . . . . . . . . . . . . . . . . . . . . 4 3 2 Special Melee Weapon 5 | . . . . 3 2 . . . . . . . . . . . . . . . . . . Unidentified Prototypes 22 | . . 2 3 . 1 . . 1 . . . . . 1 . . 5 . . 3 6 . . Parts Lost 85 | . 1 2 13 10 6 2 . . . . . 1 5 8 3 13 1 . 1 2 . 9 8 Power 9 | . . 1 3 1 2 . . . . . . . . . . 1 . . . 1 . . . Propulsion 17 | . . . 4 1 . . . . . . . . 2 2 . 2 1 . 1 . . 2 2 Utility 32 | . 1 . . 3 . . . . . . . 1 3 6 1 6 . . . 1 . 6 4 Weapon 27 | . . 1 6 5 4 2 . . . . . . . . 2 4 . . . . . 1 2 Highest Loss Streak 8 | . 1 2 8 3 2 1 . . . . . 1 1 4 1 5 1 . 1 2 . 2 4 To Critical Strikes . | . . . . . . . . . . . . . . . . . . . . . . . . Average Slot Usage (%) 89 | . 98 99 97 89 91 99 96 92 92 92 88 86 91 82 77 78 88 89 88 86 89 90 88 Engine 2 | . 14 11 3 1 1 . 6 7 7 7 5 5 3 . . . . . . . . . . Core 2 | . . . 5 7 7 9 . . . . . . 1 5 5 4 . . . . . . . Reactor 2 | . . . . . . . . . . . . . . . . . 4 5 5 9 8 8 12 Treads 13 | . 28 22 22 8 16 27 15 7 7 7 11 10 9 8 10 9 10 10 9 10 13 17 19 Wheel 2 | . . . 2 9 4 . 3 7 7 7 5 6 9 3 . . . . . . . . . Device 8 | . 6 . 2 7 2 3 . . . . 12 8 6 7 7 12 15 15 15 14 17 21 22 Storage 6 | . 14 11 9 9 9 9 7 7 7 7 5 5 5 5 5 5 5 5 5 4 4 4 4 Processor 2 | . 5 11 7 . . . . . . 5 1 . . . . . 3 5 5 4 4 4 6 Hackware 14 | . . . . 7 13 11 29 24 23 16 11 11 18 26 27 23 16 15 15 14 7 4 4 Protection 6 | . . . 8 3 1 3 . 5 7 7 7 11 7 3 5 6 9 10 10 8 9 8 4 Energy Gun 10 | . 14 29 22 19 20 1 9 15 23 16 10 4 7 6 1 . 10 10 10 4 7 6 3 Ballistic Gun 9 | . 14 11 12 10 4 19 6 8 7 13 9 13 9 4 . 5 9 10 7 8 7 7 10 Special Weapon 1 | . . . . . . 5 6 2 . . . . 1 . 3 4 . . 1 3 . . . Slashing Weapon 1 | . . . . 4 7 8 6 2 . . 1 2 1 3 4 . . . . . . . . Peak Build Rating 185 | 7 7 20 38 38 40 42 53 55 55 55 78 85 85 96 102 101 131 131 131 149 174 185 183 Average Rating 84 | 5 6 18 28 35 36 39 49 52 55 52 71 80 79 84 95 97 120 130 128 141 155 176 177 On Entrance 73 | . 7 7 20 36 37 40 42 53 54 55 52 78 80 84 91 99 83 131 131 127 133 166 166 Naked Turns . | . . . . . . . . . . . . . . . . . . . . . . . . Heaviest Build 150 | 12 12 96 105 65 65 67 65 76 73 74 91 107 104 98 111 128 100 100 100 120 149 150 150 Greatest Support 225 | 40 40 40 60 28 66 66 66 28 28 28 28 28 38 162 150 145 150 150 150 185 185 210 225 Greatest Overweight (x) 8 | . . 2 5 2 2 1 2 2 2 2 3 8 8 6 . 1 . . . . 1 . . Average Overweight (x) 1 | . . . 1 1 . . . 2 2 2 2 3 3 1 . . . . . . . . . Largest Inventory Capacity 25 | 8 8 25 25 20 20 20 20 20 20 20 20 20 20 20 20 20 20 20 20 20 20 20 20 Average Capacity 19 | 7 8 18 22 20 20 20 20 20 20 20 20 20 20 20 20 20 20 20 20 20 20 20 20 Most Carried 21 | 4 7 16 21 20 20 20 20 20 20 20 20 20 20 20 20 20 20 20 20 20 20 20 20 Average Carried 18 | 2 5 11 18 18 19 19 19 19 20 20 18 19 18 19 16 18 19 19 18 19 19 19 18 Final Capacity 25 | 8 8 25 20 20 20 20 20 20 20 20 20 20 20 20 20 20 20 20 20 20 20 20 20 Final Carried 20 | 4 7 16 18 20 20 20 20 20 20 20 20 20 20 20 19 16 20 20 19 20 20 20 18 Class Distribution -------------------- 26% | Bothacker-Tank 15% | Scavenger-Skirmisher 12% | Scavenger-Tank 12% | Bothacker-Gunner 8% | Gunner 5% | Botlord-Tank 5% | Botlord-Gunner 3% | Scavenger-Assassin 3% | Tank Dominant Class ---------------- Mutant | -10/Materials Gunner | -9/Materials Gunner | -8/Materials Bothacker-Gunner | -8/Garrison Bothacker-Gunner | -8/Materials Bothacker-Gunner | -8/Garrison Bothacker-Gunner | -7/Factory Bothacker-Tank | -7/Storage Bothacker-Tank | -7/Recycling Bothacker-Tank | -7/Scraptown Bothacker-Tank | -5/Factory Bothacker-Tank | -5/Garrison Bothacker-Tank | -5/Factory Botlord-Gunner | -5/Garrison Botlord-Tank | -4/Factory Bothacker-Tank | -4/Extension Scavenger-Skirmisher | -4/Cetus Scavenger-Skirmisher | -4/Archives Scavenger-Skirmisher | -4/Hub_04(d) Scavenger-Skirmisher | -3/Research Scavenger-Tank | -3/Quarantine Scavenger-Tank | -2/Research Scavenger-Skirmisher | -1/Access Resources | -11 -10 -9 -8 -8 -8 -8 -7 -7 -7 -7 -5 -5 -5 -5 -4 -4 -4 -4 -4 -3 -3 -2 -1 ----------- Run | Yrd Mat Mat Mat Gar Mat Gar Fac Sto Rec Scr Fac Gar Fac Gar Fac Ext Cet Arc Hub Res Qua Res Acc Matter Collected 13489 | 178 114 231 953 491 417 404 212 586 79 20 234 819 1085 1431 1332 1545 293 36 173 239 726 996 895 Remotely 2292 | . . . . . . . . . . . . . . . . 689 . . . . 298 640 665 Salvage Created 18277 | 22 306 886 2500 798 717 475 132 819 260 . 294 952 856 1932 1370 1022 75 89 599 65 544 2050 1514 Parts 851 | 4 19 49 113 42 39 21 7 30 8 . 18 40 46 62 61 32 6 5 15 2 42 94 96 Haulers Intercepted 12 | . . 4 3 . 4 . . 1 . . . . . . . . . . . . . . . Recyclers Shooed 7 | . 1 . 1 . 1 . . . . . . . 2 . . 1 . . . . . 1 . Parts Field Recycled . | . . . . . . . . . . . . . . . . . . . . . . . . Retrieved Matter . | . . . . . . . . . . . . . . . . . . . . . . . . Parts Self-Destructed . | . . . . . . . . . . . . . . . . . . . . . . . . Prevented . | . . . . . . . . . . . . . . . . . . . . . . . . Kills | -11 -10 -9 -8 -8 -8 -8 -7 -7 -7 -7 -5 -5 -5 -5 -4 -4 -4 -4 -4 -3 -3 -2 -1 ------- Run | Yrd Mat Mat Mat Gar Mat Gar Fac Sto Rec Scr Fac Gar Fac Gar Fac Ext Cet Arc Hub Res Qua Res Acc Combat Hostiles Destroyed 289 | . 7 10 53 24 12 8 2 15 4 . 4 16 13 22 20 22 1 1 3 1 7 23 21 Melee 5 | . . . . . . 2 . 1 . . . . . 2 . . . . . . . . . Guns 203 | . 5 9 48 12 6 3 2 9 4 . 4 13 7 15 3 8 1 1 2 1 7 23 20 Cannons 29 | . . 1 . . . . . . . . . . 5 . 11 12 . . . . . . . AOE 51 | . 2 . 5 12 6 3 . 4 . . . 3 1 5 6 2 . . 1 . . . 1 Classes Destroyed 21 | 1 2 6 5 2 1 . . . . . . . . . . 2 . . . . 1 1 . Worker 15 | . 1 1 1 . 2 . 2 . . . . . 1 . 2 2 . . . . . 3 . Builder 18 | . . 1 . . 1 . . 2 . . 1 . 4 . 4 1 . . 1 . 1 1 1 Tunneler 3 | 1 . . . . . . . . . . 1 . 1 . . . . . . . . . . Hauler 12 | . . 4 3 . 4 . . 1 . . . . . . . . . . . . . . . Recycler 11 | . . 2 1 . . . . 1 . . . . 1 . 4 . . . 1 . . 1 . Mechanic 3 | . . . 1 . . . . . . . . . 2 . . . . . . . . . . Operator 5 | . . 1 1 . 1 . . . . . . . . . . . . . 1 . . . 1 Watcher 12 | . . 2 2 . . . . . . . . . 1 . 3 . . . . . 1 . 3 Swarmer 39 | . . . 11 3 3 . . 3 . . . 9 . . 6 4 . . . . . . . Cutter 2 | . . . . 2 . . . . . . . . . . . . . . . . . . . Saboteur 1 | . . . . . . . . . . . . . . . . 1 . . . . . . . Grunt 124 | . 7 6 29 13 1 5 1 8 . . . 2 6 13 8 10 1 . . 1 . 6 7 Brawler 8 | . . . 1 . 2 . . . . . . 1 1 1 1 . . . 1 . . . . Duelist 10 | . . . 1 1 2 . . . . . . 1 . 2 . 2 . . . . . . 1 Protector 1 | . . . . . 1 . . . . . . . . . . . . . . . . . . Sentry 40 | . . 4 10 2 3 . . 4 4 . 2 2 . 2 . 1 . 1 3 . . 1 1 Specialist 3 | . . . . . . . . . . . . . . . . . . . . . 3 . . Hunter 21 | . . . 1 . 1 2 . 2 . . . 1 1 2 . 2 . . 1 . . 6 2 Programmer 42 | . . . . 3 . 1 1 . . . 2 . 5 2 5 1 . . . . 4 8 10 Heavy 2 | . . . . . . . . . . . . . . . . . . . . . . 2 . Behemoth 1 | . . . . . . . . . . . . . . . . 1 . . . . . . . Best Kill Streak 10 | 1 3 4 8 7 8 4 3 6 1 . 3 3 8 7 9 6 1 1 4 1 4 10 7 Combat Bots Only 7 | . 2 2 6 7 5 4 1 5 1 . 2 3 3 7 5 6 1 1 2 1 3 6 7 Max Kills in Single Turn 5 | 1 2 2 2 2 2 2 1 4 1 . 1 2 2 2 3 2 1 1 5 1 2 2 1 Gunslinging 1 | . . . 1 . . . . . . . . 1 . 1 . . . . . . . 1 . Exploded 3 | . 2 . 2 2 2 2 . 3 . . . 2 1 2 3 1 . . 1 . . . 1 Melee 1 | . . . . . . 1 . 1 . . . . . 1 . . . . . . . . . Uniques/NPCs Destroyed . | . . . . . . . . . . . . . . . . . . . . . . . . Combat | -11 -10 -9 -8 -8 -8 -8 -7 -7 -7 -7 -5 -5 -5 -5 -4 -4 -4 -4 -4 -3 -3 -2 -1 -------- Run | Yrd Mat Mat Mat Gar Mat Gar Fac Sto Rec Scr Fac Gar Fac Gar Fac Ext Cet Arc Hub Res Qua Res Acc Hostile Shots Fired 1984 | . 27 31 244 111 54 52 41 124 63 . 36 69 143 169 150 221 35 1 30 38 63 153 129 Missed 544 | . 3 10 56 40 15 16 17 50 30 . 14 16 42 44 48 47 8 . 8 8 6 36 30 Damage Taken 29655 | . 327 281 2687 1213 686 497 381 1023 244 . 462 1104 2245 2574 2428 2991 694 25 523 1193 1406 4115 2556 Core 2301 | . 34 26 187 132 93 48 47 136 35 . 20 63 116 183 158 129 50 . 48 33 326 340 97 Absorbed by Shields 1672 | . . . . . . 73 . . . . . 6 110 . . 995 . . . . 396 92 . Reduced by Siege Mode 944 | . . . . . . . . . . . . . . . 81 238 43 . 20 26 111 326 99 Redirected to Core 462 | . . . . . . . . . . . . . . . . . . . . . 281 181 . Ignored by Resistances 49 | . . . . . . . . . . . . . . . . . . . . . . 49 . Regen/Repaired (Parts) 2034 | . . 48 27 . . . 53 66 . . 245 . 384 . 174 . . . . 344 570 123 . Core Remaining (%) 73 | 100 86 93 . . . 16 . . . 68 . . . 61 . . . . 66 . 72 76 93 Volleys Fired 1036 | 3 21 24 112 47 31 36 32 43 10 . 15 48 92 80 110 105 16 8 14 11 33 80 65 Largest 4 | 2 2 4 4 4 3 4 3 4 4 . 4 4 4 4 2 3 2 2 4 3 4 4 4 Hottest 320 | 60 60 198 204 214 175 170 195 226 253 . 201 201 226 258 110 145 70 160 320 150 246 246 168 Shots Fired 2377 | 6 42 93 380 126 74 61 44 92 32 . 54 134 164 181 123 157 27 16 42 27 79 238 185 Gun 1979 | 6 42 86 374 114 68 45 23 74 32 . 52 119 100 153 19 77 27 16 40 25 72 236 179 Cannon 148 | . . 7 . . . . . . . . . . 36 . 54 51 . . . . . . . Launcher 59 | . . . 6 12 6 4 . 4 . . . 2 2 6 6 6 . . . . . . 5 Special 191 | . . . . . . 12 21 14 . . 2 13 26 22 44 23 . . 2 2 7 2 1 Kinetic 1212 | 3 21 24 130 49 13 41 11 27 10 . 26 83 93 83 59 128 27 8 22 18 43 159 134 Thermal 835 | . . 67 225 63 24 2 12 47 22 . 26 36 43 70 14 . . 8 18 7 29 77 45 Explosive 59 | . . . 6 12 6 4 . 4 . . . 2 2 6 6 6 . . . . . . 5 Electromagnetic 80 | 3 21 2 19 2 31 2 . . . . . . . . . . . . . . . . . Robot Hit Streak 35 | 3 10 11 17 12 6 5 4 9 13 . 10 15 9 17 9 13 11 13 22 12 17 35 21 Robot Miss Streak 7 | 1 3 3 3 5 6 2 6 5 2 . 3 3 4 5 3 7 2 1 2 3 2 3 4 Penetration Max 1 | . . . . 1 . . . 1 . . . 1 1 1 1 1 1 . . . 1 1 1 Secondary Targets 42 | . . . 16 . 1 . . 3 . . 1 2 2 3 . . . . . . 1 7 6 Max Gunslinging Chain 1 | . . . 1 . 1 . . 1 . . 1 1 1 1 . . . . . . 1 1 1 Autonomous 10 | . . . . . . . . . . . . . . . 10 . . . . . . . . Shots Hit Robots 1657 | 4 28 46 258 80 50 47 20 61 23 . 42 102 99 147 86 108 23 14 33 15 53 183 135 Core Hits 758 | 2 13 23 122 42 30 19 6 41 12 . 13 42 43 66 39 52 13 6 17 6 16 67 68 Critical Kills 18 | . . . 1 . . . . . . . 1 1 . 2 . . 1 . . . 1 7 4 Critical Parts Destroyed 33 | . . . 2 . . . . . . . . 2 1 3 . 3 . . . . 6 7 9 Critical Strikes 106 | . . 5 9 1 2 . . 7 6 . 3 8 5 9 5 9 1 . . . 7 15 14 Burn 31 | . . 5 6 1 1 . . 7 5 . 2 3 . 1 . . . . . . . . . Destroy 54 | . . . 3 . . . . . 1 . 1 3 1 5 . 3 1 . . . 7 15 14 Blast 15 | . . . . . . . . . . . . . 4 . 5 6 . . . . . . . Corrupt 1 | . . . . . 1 . . . . . . . . . . . . . . . . . . Sever 5 | . . . . . . . . . . . . 2 . 3 . . . . . . . . . Melee Attacks 184 | . . . . 19 13 22 1 5 . . 7 26 8 52 7 . . . 2 . 10 6 6 Impact . | . . . . . . . . . . . . . . . . . . . . . . . . Slashing 144 | . . . . 10 4 22 1 5 . . 7 26 8 52 7 . . . 2 . . . . Piercing 22 | . . . . . . . . . . . . . . . . . . . . . 10 6 6 Sneak Attacks 13 | . . . . . 3 3 . 2 . . 1 . . 1 3 . . . . . . . . Combat Hostiles 6 | . . . . . . 3 . 2 . . . . . 1 . . . . . . . . . Follow-up Attacks . | . . . . . . . . . . . . . . . . . . . . . . . . Damage Inflicted 52592 | 40 431 911 5475 2659 1586 1258 241 2030 425 . 921 2983 2776 5624 4809 5328 620 370 1325 403 1533 5608 5236 Guns 32010 | 40 325 847 4681 1328 763 396 241 1001 425 . 862 1702 1574 2193 743 1487 620 370 741 403 1533 5608 4127 Cannons 6251 | . . 41 . . . . . . . . . . 972 . 2735 2503 . . . . . . . Explosions 10003 | . 103 . 790 1299 729 429 . 902 . . . 517 230 959 1086 1266 . . 584 . . . 1109 Melee 4221 | . . . . 32 94 433 . 127 . . 59 764 . 2472 240 . . . . . . . . Ramming 107 | . 3 23 4 . . . . . . . . . . . 5 72 . . . . . . . Kinetic 24072 | 28 73 100 1426 647 170 358 117 360 136 . 452 1099 1737 1199 2847 3990 620 191 392 315 1096 3616 3103 Thermal 13382 | . 103 758 2991 641 301 18 124 641 289 . 410 603 809 994 631 . . 179 349 88 437 1992 1024 Explosive 9258 | . . . 790 1299 671 429 . 902 . . . 517 230 959 1086 1266 . . . . . . 1109 Electromagnetic 1552 | 12 252 30 264 40 350 20 . . . . . . . . . . . . 584 . . . . Impact . | . . . . . . . . . . . . . . . . . . . . . . . . Slashing 4221 | . . . . 32 94 433 . 127 . . 59 764 . 2472 240 . . . . . . . . Piercing . | . . . . . . . . . . . . . . . . . . . . . . . . Highest Corruption 22 | . . . . 1 1 1 3 3 5 . 1 5 16 22 3 4 5 5 6 6 22 6 7 Average Corruption 6 | . . . . 1 1 1 2 3 3 . 1 3 9 20 1 3 4 5 5 4 13 3 4 Corruption Purged 8 | . . . . . . . . . . . . . . . . . . . . . . 6 2 Corruption Blocked . | . . . . . . . . . . . . . . . . . . . . . . . . Effects 387 | . . . . 1 6 7 3 20 12 . . 24 40 109 8 32 14 2 20 5 59 9 16 Message Errors 95 | . . . . 1 1 3 . 4 1 . . 4 8 28 5 9 3 . 5 3 15 . 5 Matter Fused 83 | . . . . . 2 1 1 5 1 . . 4 7 27 2 5 6 . 4 1 15 1 1 Heat Flow Errors 44 | . . . . . . . 1 1 4 . . 2 4 14 . 4 1 . 2 . 8 . 3 Energy Discharges 45 | . . . . . 2 . 1 3 2 . . 3 3 13 1 7 . 1 1 . 6 . 2 Parts Rejected 2 | . . . . . . . . . . . . . 1 . . . . . . . . . 1 Parts Fused 5 | . . . . . . . . 1 . . . . 1 . . . . . 1 1 . 1 . Data Loss (minor) 47 | . . . . . . 1 . 3 3 . . 5 7 11 . 2 . . 2 . 6 6 1 Data Loss (major) 18 | . . . . . 1 . . 1 1 . . 3 1 3 . 2 2 1 1 . 1 1 . Misfires 17 | . . . . . . 1 . 1 . . . 1 4 2 . 3 . . 1 . 2 . 2 Alerts 12 | . . . . . . 1 . . . . . . 1 2 . . 2 . 1 . 4 . 1 Misdirections 1 | . . . . . . . . . . . . . . 1 . . . . . . . . . Weapon Failures 18 | . . . . . . . . 1 . . . 2 3 8 . . . . 2 . 2 . . Overload Shots 1 | . . . . . . . . . . . . . . . . . . . 1 . . . . Overflow Damage 1059 | . . . 27 66 4 23 . 29 . . 19 29 37 72 449 232 . . 21 . . . 51 Projectiles 571 | . . . . . . . . . . . . . 37 . 324 210 . . . . . . . Explosions 308 | . . . 27 66 4 23 . 29 . . . 29 . 28 8 22 . . 21 . . . 51 Melee 180 | . . . . . . . . . . . 19 . . 44 117 . . . . . . . . Knockbacks 29 | . . . . . . . . . . . . . 12 . 8 9 . . . . . . . Impact . | . . . . . . . . . . . . . . . . . . . . . . . . Kinetic 26 | . . . . . . . . . . . . . 9 . 8 9 . . . . . . . Secondary 3 | . . . . . . . . . . . . . 3 . . . . . . . . . . Self-Inflicted Damage 661 | . 54 . 48 135 58 49 . 119 . . . . . . . . . . 92 . . . 106 Shots 20 | . 2 . 1 5 2 3 . 4 . . . . . . . . . . 1 . . . 2 Rammed 8 | . 2 1 1 . . . . . . . . . . . 1 3 . . . . . . . Targets Rammed 9 | . 2 2 1 . . . . . . . . . . . 1 3 . . . . . . . Kicked . | . . . . . . . . . . . . . . . . . . . . . . . . Crushed 1 | . . 1 . . . . . . . . . . . . . . . . . . . . . Highest Temperature 702 | 20 136 374 702 277 335 85 334 348 348 . 63 212 254 494 401 211 221 . 209 12 199 522 223 Average Temperature 121 | 15 49 117 140 121 126 33 108 130 160 . 25 33 96 148 147 75 131 . 65 7 76 147 46 Received Heat Transfer 5695 | . 147 156 1197 414 270 72 27 324 66 . 39 117 631 705 429 696 9 . 54 63 . 72 207 Effects 43 | . . 2 12 3 . . 2 1 5 . . . . 8 3 . . . . . . 7 . Shutdowns 9 | . . 1 3 . . . . . . . . . . 2 1 . . . . . . 2 . Energy Bleed 2 | . . . . 1 . . . 1 . . . . . . . . . . . . . . . Interference 24 | . . . 7 2 . . 2 . 5 . . . . 3 . . . . . . . 5 . Matter Decay 1 | . . 1 . . . . . . . . . . . . . . . . . . . . . Short Circuit 6 | . . . 2 . . . . . . . . . . 2 2 . . . . . . . . Damage (minor) 1 | . . . . . . . . . . . . . . 1 . . . . . . . . . Siege Activations 42 | . . . . . . . . . . . . . . . 5 9 4 . 2 3 3 9 7 Total Turns 736 | . . . . . . . . . . . . . . . 49 181 30 . 23 9 128 199 117 Longest Duration 58 | . . . . . . . . . . . . . . . 16 45 17 . 12 4 58 53 24 Robots Corrupted 1 | . . . . . . . . . . . . . . . . . . . 1 . . . . Combat Hostiles . | . . . . . . . . . . . . . . . . . . . . . . . . Parts Fried 8 | . . . . . . . . . . . . . . . . 2 . . 6 . . . . Impact Corruptions . | . . . . . . . . . . . . . . . . . . . . . . . . Robots Melted 1 | . . . . . . . . 1 . . . . . . . . . . . . . . . Combat Hostiles 1 | . . . . . . . . 1 . . . . . . . . . . . . . . . Parts Melted 59 | . . 4 13 4 1 . . 10 5 . 4 5 3 2 . . . . 1 . . 6 1 Heat Transferred 24880 | . 150 1813 6353 1480 679 37 300 2333 1222 . 1107 1414 1110 1477 623 . . 259 444 83 444 2368 1184 Parts Sabotaged . | . . . . . . . . . . . . . . . . . . . . . . . . Parts Stolen . | . . . . . . . . . . . . . . . . . . . . . . . . Parts Stripped . | . . . . . . . . . . . . . . . . . . . . . . . . Power Chain Reactions 3 | . 2 . . . 1 . . . . . . . . . . . . . . . . . . Alert | -11 -10 -9 -8 -8 -8 -8 -7 -7 -7 -7 -5 -5 -5 -5 -4 -4 -4 -4 -4 -3 -3 -2 -1 ------- Run | Yrd Mat Mat Mat Gar Mat Gar Fac Sto Rec Scr Fac Gar Fac Gar Fac Ext Cet Arc Hub Res Qua Res Acc Peak Influence 1844 | 5 259 313 1114 1753 1055 1443 818 603 332 . 182 1047 849 1634 1205 1844 1411 752 1027 483 143 435 634 Initial 1032 | . 3 109 76 724 854 685 757 195 182 . . 21 549 341 847 542 1032 564 263 468 13 2 254 Average 598 | 1 140 193 369 1261 919 1005 660 346 190 . 56 546 554 1050 883 1012 1232 699 700 195 52 153 331 Maximum Alert Level 5 | . 1 1 4 5 3 4 3 2 1 . . 3 3 5 4 5 4 3 3 2 . 2 2 Low Security (%) 24 | 100 80 61 22 . . . . 17 45 . 100 22 . . . . . . . 52 100 60 15 Level 1 17 | . 19 38 47 . . . . 44 54 . . 17 12 3 . . . . 28 23 . 30 51 Level 2 16 | . . . 14 . . 2 60 37 . . . 26 77 6 9 15 . 37 6 23 . 9 33 Level 3 27 | . . . 13 26 100 74 39 . . . . 34 10 42 81 43 3 62 65 . . . . Level 4 13 | . . . . 60 . 22 . . . . . . . 41 9 34 96 . . . . . . Level 5 1 | . . . . 12 . . . . . . . . . 5 . 6 . . . . . . . High Security . | . . . . . . . . . . . . . . . . . . . . . . . . Max Security . | . . . . . . . . . . . . . . . . . . . . . . . . Sterilizations 1 | . . . 1 . . . . . . . . . . . . . . . . . . . . Squads Dispatched 68 | . 4 3 11 . 3 . 1 7 . . 2 . 4 . 8 7 2 . 2 4 2 4 4 Investigation 16 | . 2 2 3 . . . 1 1 . . . . 1 . . 3 2 . . 1 . . . Extermination 14 | . . . . . . . . 1 . . 2 . 1 . 2 . . . 1 . 2 2 3 Reinforcement 28 | . 2 1 5 . 2 . . 5 . . . . 2 . 3 2 . . 1 3 . 2 . Assault 5 | . . . 1 . 1 . . . . . . . . . . 2 . . . . . . 1 Garrison 5 | . . . 2 . . . . . . . . . . . 3 . . . . . . . . Intercept . | . . . . . . . . . . . . . . . . . . . . . . . . Searches Triggered . | . . . . . . . . . . . . . . . . . . . . . . . . Construction Impeded 4 | . . . 1 . 1 . . . . . . . 1 . . 1 . . . . . . . Haulers Reinforced 4 | . . . . . . . . 2 . . . . . . . . . . . 2 . . . Active Scanning Responses . | . . . . . . . . . . . . . . . . . . . . . . . . Cargo Convoy Interrupts 1 | . . . . . . . 1 . . . . . . . . . . . . . . . . Alert ID Control Effect 25 | . . . . . . . . . . . . . . 4 18 1 . . 2 . . . . Stealth | -11 -10 -9 -8 -8 -8 -8 -7 -7 -7 -7 -5 -5 -5 -5 -4 -4 -4 -4 -4 -3 -3 -2 -1 --------- Run | Yrd Mat Mat Mat Gar Mat Gar Fac Sto Rec Scr Fac Gar Fac Gar Fac Ext Cet Arc Hub Res Qua Res Acc Distress Signals 24 | . 2 1 6 . 2 . . 1 . . . . 4 . 2 . 2 . 1 3 . . . Communications Jammed 167 | . . . . . . . 12 39 . . . . 65 . 31 1 . . . . . 2 17 Distress Signals 166 | . . . . . . . 12 39 . . . . 65 . 30 1 . . . . . 2 17 Times Spotted 598 | . 14 14 75 31 32 24 16 29 4 . 5 25 37 40 62 66 14 4 18 23 9 24 32 Peak Tracking Total 12 | . 3 2 7 5 7 4 4 5 1 . 2 4 6 8 5 12 5 2 6 5 3 4 4 Tactical Retreats 23 | . . 1 6 . 1 1 . . . . 1 1 1 2 1 4 . . 1 . . 1 2 Traps | -11 -10 -9 -8 -8 -8 -8 -7 -7 -7 -7 -5 -5 -5 -5 -4 -4 -4 -4 -4 -3 -3 -2 -1 ------- Run | Yrd Mat Mat Mat Gar Mat Gar Fac Sto Rec Scr Fac Gar Fac Gar Fac Ext Cet Arc Hub Res Qua Res Acc Traps Triggered 46 | . 1 1 2 3 2 8 . 2 . . 1 11 5 3 . 1 . . 1 4 . 1 . Indirectly . | . . . . . . . . . . . . . . . . . . . . . . . . Trap Hack Attempts . | . . . . . . . . . . . . . . . . . . . . . . . . Triggered . | . . . . . . . . . . . . . . . . . . . . . . . . Disarmed . | . . . . . . . . . . . . . . . . . . . . . . . . Reprogrammed . | . . . . . . . . . . . . . . . . . . . . . . . . Reused . | . . . . . . . . . . . . . . . . . . . . . . . . Traps Extracted . | . . . . . . . . . . . . . . . . . . . . . . . . Installed . | . . . . . . . . . . . . . . . . . . . . . . . . Triggered . | . . . . . . . . . . . . . . . . . . . . . . . . Machines | -11 -10 -9 -8 -8 -8 -8 -7 -7 -7 -7 -5 -5 -5 -5 -4 -4 -4 -4 -4 -3 -3 -2 -1 ---------- Run | Yrd Mat Mat Mat Gar Mat Gar Fac Sto Rec Scr Fac Gar Fac Gar Fac Ext Cet Arc Hub Res Qua Res Acc Machines Disabled 65 | . . . 3 6 3 4 . 6 . . 3 4 3 5 5 5 . 2 9 . 4 . 3 Max in Single Turn 6 | . . . 2 1 1 1 . 2 . . 1 1 1 1 1 1 . 1 6 . 1 . 1 Garrison Access 6 | . . . . . . . 1 . . . . . . . 1 . . . . 1 1 . 2 Garrison Relay 18 | . . . . 6 . 4 . . . . . 4 . 4 . . . . . . . . . Network Hub 1 | . . . . . . . . . . . . . . . . . . . 1 . . . . Machines Repaired . | . . . . . . . . . . . . . . . . . . . . . . . . Machines Dismantled . | . . . . . . . . . . . . . . . . . . . . . . . . Machines Sabotaged . | . . . . . . . . . . . . . . . . . . . . . . . . Overloaded Fab Kills . | . . . . . . . . . . . . . . . . . . . . . . . . Hacking | -11 -10 -9 -8 -8 -8 -8 -7 -7 -7 -7 -5 -5 -5 -5 -4 -4 -4 -4 -4 -3 -3 -2 -1 --------- Run | Yrd Mat Mat Mat Gar Mat Gar Fac Sto Rec Scr Fac Gar Fac Gar Fac Ext Cet Arc Hub Res Qua Res Acc Machines Accessed 86 | . 3 1 10 4 5 1 6 5 10 . 3 2 3 2 4 9 3 . 1 3 7 . 4 Terminals 63 | . 2 . 8 4 4 1 4 4 4 . 2 2 1 2 3 9 3 . 1 2 5 . 2 Fabricators . | . . . . . . . . . . . . . . . . . . . . . . . . Repair Stations 6 | . . 1 1 . . . 1 1 . . . . 1 . . . . . . . 1 . . Recycling Units 7 | . 1 . . . . . . . 6 . . . . . . . . . . . . . . Scanalyzers . | . . . . . . . . . . . . . . . . . . . . . . . . Garrison Access 10 | . . . 1 . 1 . 1 . . . 1 . 1 . 1 . . . . 1 1 . 2 Total Hacks 219 | . 9 1 36 10 15 1 14 9 17 . 5 5 5 5 11 24 10 . 2 11 24 . 5 Successful 109 | . 7 1 19 1 8 1 9 6 11 . 2 . 3 2 7 10 4 . . 3 12 . 3 Failed 110 | . 2 . 17 9 7 . 5 3 6 . 3 5 2 3 4 14 6 . 2 8 12 . 2 Catastrophic 22 | . . . 4 4 . . 1 . 2 . 1 2 . . . 2 . . . . 5 . 1 Database Lockouts . | . . . . . . . . . . . . . . . . . . . . . . . . Manual 96 | . 8 2 24 2 11 . 6 3 13 . 2 . 3 . 2 2 1 . . 6 10 . 1 Terminals 186 | . 7 . 33 10 14 1 12 8 11 . 4 5 3 5 10 24 10 . 2 6 18 . 3 Fabricators . | . . . . . . . . . . . . . . . . . . . . . . . . Repair Stations 8 | . . 1 1 . . . 1 1 . . . . 1 . . . . . . . 3 . . Recycling Units 8 | . 2 . . . . . . . 6 . . . . . . . . . . . . . . Scanalyzers . | . . . . . . . . . . . . . . . . . . . . . . . . Garrison Access 17 | . . . 2 . 1 . 1 . . . 1 . 1 . 1 . . . . 5 3 . 2 Terminal Hacks 44 | . 3 . 4 1 . 1 4 4 3 . . . . 2 4 8 4 . . . 5 . 1 Record 7 | . . . . . . . . 1 . . . . . . 1 . 3 . . . 2 . . Robot Analysis 4 | . 2 . 1 . . . . . 1 . . . . . . . . . . . . . . Prototype ID Bank 4 | . . . . . . . 2 . 1 . . . . . . 1 . . . . . . . Open Door 9 | . . . . . . . . 1 . . . . . 1 . 5 1 . . . . . 1 Level Access Points 1 | . . . . . . . . . . . . . . . . . . . . . 1 . . Emergency Access Points 2 | . . . . . . 1 . . . . . . . 1 . . . . . . . . . Terminal Index 2 | . . . 1 . . . . . . . . . . . . . . . . . 1 . . Unreport Threat 4 | . . . . . . . 1 2 1 . . . . . . . . . . . . . . Locate Traps 2 | . . . . . . . . . . . . . . . 1 1 . . . . . . . Hauler Manifests 4 | . 1 . 1 . . . . . . . . . . . 1 1 . . . . . . . Zone Layout 4 | . . . 1 . . . 1 . . . . . . . 1 . . . . . 1 . . Garrison Registry 1 | . . . . 1 . . . . . . . . . . . . . . . . . . . Fabricator Hacks . | . . . . . . . . . . . . . . . . . . . . . . . . Repair Station Hacks 2 | . . . . . . . . . . . . . . . . . . . . . 2 . . Scan Component 1 | . . . . . . . . . . . . . . . . . . . . . 1 . . Repair 1 | . . . . . . . . . . . . . . . . . . . . . 1 . . Recycling Unit Hacks . | . . . . . . . . . . . . . . . . . . . . . . . . Scanalyzer . | . . . . . . . . . . . . . . . . . . . . . . . . Garrison Access Hacks 12 | . . . 1 . 1 . 1 . . . 1 . 1 . 1 . . . . 2 2 . 2 Unlock Access 4 | . . . 1 . 1 . . . . . 1 . 1 . . . . . . . . . . Seal Access 6 | . . . . . . . 1 . . . . . . . 1 . . . . 1 1 . 2 Coupler Status 2 | . . . . . . . . . . . . . . . . . . . . 1 1 . . Unauthorized Hacks 51 | . 4 1 14 . 7 . 4 2 8 . 1 . 2 . 2 2 . . . 1 3 . . Terminals 37 | . 3 . 13 . 7 . 3 1 2 . 1 . 1 . 2 2 . . . . 2 . . Botnet 25 | . 2 . 6 . 3 . 3 1 2 . 1 . 1 . 2 2 . . . . 2 . . Skim 12 | . 1 . 7 . 4 . . . . . . . . . . . . . . . . . . Fabricators . | . . . . . . . . . . . . . . . . . . . . . . . . Repair Stations 5 | . . 1 1 . . . 1 1 . . . . 1 . . . . . . . . . . Patch 5 | . . 1 1 . . . 1 1 . . . . 1 . . . . . . . . . . Recycling Units 7 | . 1 . . . . . . . 6 . . . . . . . . . . . . . . Tunnel 7 | . 1 . . . . . . . 6 . . . . . . . . . . . . . . Scanalyzers . | . . . . . . . . . . . . . . . . . . . . . . . . Garrison Access 2 | . . . . . . . . . . . . . . . . . . . . 1 1 . . Restock 2 | . . . . . . . . . . . . . . . . . . . . 1 1 . . Data Cores Recovered 2 | . . . . . . . . . . . . . . . . 1 . . . . . . 1 Used 1 | . . . . . . . . . . . . . . . . . . . . . . . 1 Hacking Detections 66 | . 3 1 8 4 5 1 4 4 4 . 3 2 2 2 3 6 2 . 1 3 6 . 2 Full Trace Events 12 | . . . . 3 . . . . 3 . . 1 . . . 3 2 . . . . . . Feedback Events 4 | . . . . . . . . . 2 . . 1 . . . . 1 . . . . . . Corruption 4 | . . . . . . . . . 2 . . 1 . . . . 1 . . . . . . Feedback Blocked . | . . . . . . . . . . . . . . . . . . . . . . . . Robot Schematics Acquired . | . . . . . . . . . . . . . . . . . . . . . . . . Robots Built . | . . . . . . . . . . . . . . . . . . . . . . . . Authchips . | . . . . . . . . . . . . . . . . . . . . . . . . Time . | . . . . . . . . . . . . . . . . . . . . . . . . Total Robot Build Rating . | . . . . . . . . . . . . . . . . . . . . . . . . Part Schematics Acquired . | . . . . . . . . . . . . . . . . . . . . . . . . Parts Built . | . . . . . . . . . . . . . . . . . . . . . . . . Authchips . | . . . . . . . . . . . . . . . . . . . . . . . . Time . | . . . . . . . . . . . . . . . . . . . . . . . . Total Part Build Rating . | . . . . . . . . . . . . . . . . . . . . . . . . Parts Repaired 1 | . . . . . . . . . . . . . . . . . . . . . 1 . . Time 108 | . . . . . . . . . . . . . . . . . . . . . 108 . . Parts Recycled . | . . . . . . . . . . . . . . . . . . . . . . . . Recycled Matter . | . . . . . . . . . . . . . . . . . . . . . . . . Retrieved Matter . | . . . . . . . . . . . . . . . . . . . . . . . . Retrieved Components . | . . . . . . . . . . . . . . . . . . . . . . . . Parts Scanalyzed . | . . . . . . . . . . . . . . . . . . . . . . . . Part Schematics Acquired . | . . . . . . . . . . . . . . . . . . . . . . . . Parts Damaged . | . . . . . . . . . . . . . . . . . . . . . . . . Bothacking | -11 -10 -9 -8 -8 -8 -8 -7 -7 -7 -7 -5 -5 -5 -5 -4 -4 -4 -4 -4 -3 -3 -2 -1 ------------ Run | Yrd Mat Mat Mat Gar Mat Gar Fac Sto Rec Scr Fac Gar Fac Gar Fac Ext Cet Arc Hub Res Qua Res Acc Used RIF Installer 5 | . . . . 1 . 1 . . . . . 1 . 2 . . . . . . . . . Coupler Efficiency 2 | . . . . . . . . . . . . 1 . 1 . . . . . . . . . Signal Jammer 1 | . . . . . . 1 . . . . . . . . . . . . . . . . . Alert ID Control 1 | . . . . . . . . . . . . . . 1 . . . . . . . . . Robots Hacked 96 | . . . . 5 5 9 8 7 . . 1 6 10 9 21 7 . . 2 1 3 1 1 Non-combat 24 | . . . . . 1 . 3 2 . . 1 . 7 . 3 1 . . 2 1 1 1 1 Combat 72 | . . . . 5 4 9 5 5 . . . 6 3 9 18 6 . . . . 2 . . Robot Hacks Applied 102 | . . . . 6 5 9 9 7 . . 1 6 12 9 23 7 . . 2 1 3 1 1 parse_system 2 | . . . . . 1 . 1 . . . . . . . . . . . . . . . . drop_inventory 8 | . . . . . . . 2 1 . . . . 2 . 1 . . . 2 . . . . ignore_parts 1 | . . . . . . . . . . . . . 1 . . . . . . . . . . purge_threat 2 | . . . . . . . . . . . . . 2 . . . . . . . . . . map_route 6 | . . . . . . . 1 . . . . . 2 . 2 . . . . . . . 1 scatter_targeting 2 | . . . . . . . . . . . . . . . 2 . . . . . . . . spike_heat 1 | . . . . 1 . . . . . . . . . . . . . . . . . . . amplify_resonance 9 | . . . . . . 2 2 . . . . 1 . 1 3 . . . . . . . . disable_weapons 2 | . . . . . . . . . . . . . . . 1 1 . . . . . . . reboot_system 5 | . . . . . . . . 2 . . . . 1 1 1 . . . . . . . . overwrite_iff 13 | . . . . . 1 2 2 . . . . . 1 . 6 1 . . . . . . . streamctrl_high 2 | . . . . . 1 . . . . . . . . . 1 . . . . . . . . formatsys_low 8 | . . . . . . . . 1 . . 1 . 1 . 1 1 . . . 1 1 1 . formatsys_high 41 | . . . . 5 2 5 1 3 . . . 5 2 7 5 4 . . . . 2 . . Relay Couplers Released 71 | . . . . 22 . 17 . . . . . 19 . 13 . . . . . . . . . Machine Destruction 71 | . . . . 22 . 17 . . . . . 19 . 13 . . . . . . . . . Attached 32 | . . . . 6 . 5 2 1 . . . 4 3 6 2 2 . . 1 . . . . Fabnet Peak Effective % . | . . . . . . . . . . . . . . . . . . . . . . . . Robots Rewired 9 | . . . . . . 3 . . . . . . . 2 . 4 . . . . . . . Allies Hacked 4 | . . . . . . . 2 . . . . . . . 2 . . . . . . . . Hacks Repelled . | . . . . . . . . . . . . . . . . . . . . . . . . Allies | -11 -10 -9 -8 -8 -8 -8 -7 -7 -7 -7 -5 -5 -5 -5 -4 -4 -4 -4 -4 -3 -3 -2 -1 -------- Run | Yrd Mat Mat Mat Gar Mat Gar Fac Sto Rec Scr Fac Gar Fac Gar Fac Ext Cet Arc Hub Res Qua Res Acc Total Allies 88 | . . . . 6 4 10 3 4 . . 1 5 4 9 13 16 5 . . 4 3 1 . Largest Group 11 | . . . . 2 3 6 6 4 . . 1 4 4 5 4 10 11 10 8 4 2 1 . Highest-Rated Group 726 | . . . . 32 47 98 97 110 . . 14 132 132 185 186 555 726 625 505 152 112 36 . Highest-Rated Ally 159 | . . . . 20 16 21 18 32 . . 14 49 49 49 58 159 134 96 96 46 56 36 . Total Orders 10 | . . . . . . . . . . . 1 . 1 . 5 . . . . 1 1 1 . AID 10 | . . . . . . . . . . . 1 . 1 . 5 . . . . 1 1 1 . Ally Attacks 711 | . . . . 12 56 31 49 28 . . . 36 50 44 106 165 57 23 45 6 3 . . Total Damage 19004 | . . . . 109 672 580 561 991 . . . 640 1025 1502 3252 5507 1525 859 1490 193 98 . . Kills 127 | . . . . 2 9 8 5 8 . . . 6 6 8 18 28 15 4 10 . . . . Allies Corrupted 8 | . . . . . . . . . . . . . 1 1 . 1 . . 4 . 1 . . Allies Melted 3 | . . . . 1 . . . . . . . . . 1 . . . . . 1 . . . Intel | -11 -10 -9 -8 -8 -8 -8 -7 -7 -7 -7 -5 -5 -5 -5 -4 -4 -4 -4 -4 -3 -3 -2 -1 ------- Run | Yrd Mat Mat Mat Gar Mat Gar Fac Sto Rec Scr Fac Gar Fac Gar Fac Ext Cet Arc Hub Res Qua Res Acc Robot Analysis Total 4 | . 2 . 1 . . . . . 1 . . . . . . . . . . . . . . Derelict Logs Recovered . | . . . . . . . . . . . . . . . . . . . . . . . . Drone Launches . | . . . . . . . . . . . . . . . . . . . . . . . . Drone Recoveries . | . . . . . . . . . . . . . . . . . . . . . . . . Exploration | -11 -10 -9 -8 -8 -8 -8 -7 -7 -7 -7 -5 -5 -5 -5 -4 -4 -4 -4 -4 -3 -3 -2 -1 ------------- Run | Yrd Mat Mat Mat Gar Mat Gar Fac Sto Rec Scr Fac Gar Fac Gar Fac Ext Cet Arc Hub Res Qua Res Acc Turns Passed 26193 | 134 373 821 2206 1377 948 1269 1001 952 722 1011 576 1338 1145 2273 1217 1690 711 138 689 1670 1465 1193 1274 Spaces Moved 13119 | 73 172 280 804 791 497 683 630 515 515 774 319 680 581 1115 517 788 355 63 344 854 698 434 637 Core 5 | 5 . . . . . . . . . . . . . . . . . . . . . . . Treads 7702 | 68 172 280 539 10 216 683 338 . . . . 1 . 705 517 788 355 63 344 854 698 434 637 Legs . | . . . . . . . . . . . . . . . . . . . . . . . . Wheels 5412 | . . . 265 781 281 . 292 515 515 774 319 679 581 410 . . . . . . . . . Hover . | . . . . . . . . . . . . . . . . . . . . . . . . Flight . | . . . . . . . . . . . . . . . . . . . . . . . . Fastest Speed 50 | 50 160 160 130 115 115 145 130 130 130 130 130 145 120 120 160 160 160 160 160 155 155 155 155 Average Speed 152 | 152 160 234 210 131 134 146 138 130 130 130 139 147 140 153 160 160 160 160 160 157 156 155 155 Slowest Speed 490 | 160 160 320 240 320 305 225 145 130 130 130 145 490 210 245 160 240 160 160 160 160 245 157 158 Overloaded Moves . | . . . . . . . . . . . . . . . . . . . . . . . . Propulsion Burnouts . | . . . . . . . . . . . . . . . . . . . . . . . . Robots Hopped . | . . . . . . . . . . . . . . . . . . . . . . . . Cave-ins Triggered 1 | . . . . . . . . . . . . . . . . . . . . . . 1 . Exploration Rate (%) 48 | 6 29 26 83 75 48 64 21 87 91 59 9 72 19 88 18 71 84 75 28 32 57 11 19 Regions Visited 23 Branch Regions 8 Pre-discovered Areas 9 | . 1 . 1 . . . . . 6 1 . . . . . . . . . . . . . Known Exits Taken 14 | . . . 1 . 1 . 1 . . 1 1 . 1 . 1 1 1 1 1 1 1 1 . Unknown Exits Taken 5 | 1 1 1 . . . . . 1 1 . . . . . . . . . . . . . . Scrap Searched 7 | . . . . . . . . . . 7 . . . . . . . . . . . . . Spaces Dug 145 | . . . 10 30 2 22 1 12 . . 6 21 5 . . . . . 4 . 3 5 24 Terrain Destroyed 824 | . 4 . 53 51 27 35 1 79 . . 7 40 22 64 58 131 1 7 158 1 4 13 68 Melee 28 | . . . . . 2 . 1 . . . 6 2 5 . . . . . 2 . 3 5 2 Projectile 150 | . . . 1 1 . . . 2 . . 1 6 9 12 23 58 1 7 12 1 1 8 7 AOE 646 | . 4 . 52 50 25 35 . 77 . . . 32 8 52 35 73 . . 144 . . . 59 Terrain Rammed . | . . . . . . . . . . . . . . . . . . . . . . . . Walls Destroyed . | . . . . . . . . . . . . . . . . . . . . . . . . Machines Disabled . | . . . . . . . . . . . . . . . . . . . . . . . . Actions | -11 -10 -9 -8 -8 -8 -8 -7 -7 -7 -7 -5 -5 -5 -5 -4 -4 -4 -4 -4 -3 -3 -2 -1 --------- Run | Yrd Mat Mat Mat Gar Mat Gar Fac Sto Rec Scr Fac Gar Fac Gar Fac Ext Cet Arc Hub Res Qua Res Acc Total 17345 | 87 230 390 1067 1020 714 882 737 716 546 781 410 895 771 1468 780 1037 477 85 449 1156 997 830 820 Wait 1883 | 1 32 45 38 71 132 95 44 124 19 . 36 14 42 51 106 105 65 13 82 262 177 258 71 Move 13096 | 72 171 279 804 789 496 682 629 514 514 773 318 679 581 1114 516 787 354 62 343 853 697 433 636 Hop . | . . . . . . . . . . . . . . . . . . . . . . . . Pick Up 216 | 4 3 19 28 26 9 7 8 2 . 1 7 7 12 25 8 6 12 1 2 4 8 11 6 Fast Attach 141 | 7 1 1 9 2 7 2 3 5 . 2 2 10 7 16 7 6 10 . 1 9 23 5 6 Attach 98 | . . 5 15 11 5 1 2 1 . . 4 1 4 4 7 7 1 . 1 1 6 12 10 Detach 22 | . . . 2 . 1 . . . . . 1 . . 2 . 1 2 . . 3 5 2 3 Swap 253 | . . 4 27 21 9 10 7 17 2 1 5 20 19 32 12 16 2 . 4 2 12 17 14 Drop 226 | . . 11 31 13 9 5 11 5 1 4 7 16 6 39 6 . 15 1 . 11 26 6 3 Fire 1036 | 3 21 24 112 47 31 36 32 43 10 . 15 48 92 80 110 105 16 8 14 11 33 80 65 Melee 184 | . . . . 19 13 22 1 5 . . 7 26 8 52 7 . . . 2 . 10 6 6 Ram . | . . . . . . . . . . . . . . . . . . . . . . . . Kick . | . . . . . . . . . . . . . . . . . . . . . . . . Crush 9 | . 2 2 1 . . . . . . . . . . . 1 3 . . . . . . . Escape Stasis 128 | . . . . 16 . 8 . . . . 8 72 . 24 . . . . . . . . . Rewire 53 | . . . . 5 2 14 . . . . . 2 . 29 . 1 . . . . . . . Trap . | . . . . . . . . . . . . . . . . . . . . . . . . Miscellaneous . | . . . . . . . . . . . . . . . . . . . . . . . . Route ------- -11/Scrapyard -10/Materials -9/Materials (discovered 2 exits: *Mat / [*Min]) -8/Materials (discovered 3 exits: *Fac x2 / Gar) -8/Garrison (discovered 4 exits: *Mat x4) -8/Materials (discovered 2 exits: *Fac / Gar) -8/Garrison (discovered 2 exits: *Fac x2) -7/Factory (discovered 4 exits: *Fac x3 / *Sto) -7/Storage (discovered 2 exits: *Fac / *Rec) -7/Recycling (discovered 2 exits: *Fac / [*Scr]) -7/Scraptown -5/Factory -5/Garrison (discovered 3 exits: *Fac x3) -5/Factory -5/Garrison (discovered 3 exits: *Fac x3) -4/Factory (discovered 2 exits: [Upp] / *Ext) -4/Extension (discovered 2 exits: *Res / *Cet) -4/Cetus (discovered 2 exits: *Res / *Arc) -4/Archives (discovered 2 exits: *Res / *Hub) -4/Hub_04(d) (discovered 2 exits: *Res x2) -3/Research (discovered 2 exits: *Res / *Qua) -3/Quarantine -2/Research -1/Access To Epsilon Eridani History --------- Turn | Location | Event 5 | -11/Scrapyard | Discovered new exit (range 14) 135 | -11/Scrapyard | Entered Materials 307 | -10/Materials | Build established: Mutant 379 | -10/Materials | Discovered new exit (range 3) 508 | -10/Materials | Entered another Materials area 508 | -9/Materials | Evolved 2 slots: Weapon x2 832 | -9/Materials | Build established: Gunner 941 | -9/Materials | Discovered new exit (range 8) 1221 | -9/Materials | Discovered new exit (range 15) 1329 | -9/Materials | Entered another Materials area 1329 | -8/Materials | Evolved 2 slots: Propulsion x1, Utility x1 1947 | -8/Materials | Discovered new exit (range 8) 2264 | -8/Materials | Lost 8 parts (1p4n3w) 2537 | -8/Materials | Build established: Scavenger-Gunner 2813 | -8/Materials | Learned 8 Factory zone layouts 2881 | -8/Materials | Learned location of 1 exit from Lower Caves 2937 | -8/Materials | Learned location of Extension (-4) 2983 | -8/Materials | Learned location of 1 exit from Lower Caves 3019 | -8/Materials | Learned location of 1 exit from Lower Caves 3044 | -8/Materials | Learned location of 3 exits from Factory 3058 | -8/Materials | Learned location of 1 exit from Extension 3081 | -8/Materials | Learned location of 1 exit from Extension 3115 | -8/Materials | Learned Storage security intel 3146 | -8/Materials | Build established: Gunner 3159 | -8/Materials | Learned 2 Storage zone layouts 3329 | -8/Materials | First assault squad dispatched 3416 | -8/Materials | Garrison activated, responded to threat 3425 | -8/Materials | Discovered new exit (range 16) 3515 | -8/Materials | Build established: Tank 3516 | -8/Materials | Sterilization system engaged 3516 | -8/Materials | Non-combat units ordered to evacuate 3535 | -8/Materials | Identified exit to Garrison 3535 | -8/Materials | Entered Garrison 3550 | -8/Garrison | Lost 4 parts (1p3w) 3587 | -8/Garrison | Triggered checkpoint 3646 | -8/Garrison | Lost 3 parts (1n2w) 3648 | -8/Garrison | Rescued a captive Derelict 3797 | -8/Garrison | Destroyed 7 combat bots 3829 | -8/Garrison | Discovered new exit (range 10) 3861 | -8/Garrison | Installed Relay Interface Framework 3881 | -8/Garrison | Triggered checkpoint 3930 | -8/Garrison | Build established: Scavenger-Tank 3962 | -8/Garrison | Garrison Relay disabled 4091 | -8/Garrison | Triggered checkpoint 4113 | -8/Garrison | Garrison Relay disabled 4236 | -8/Garrison | Discovered new exit (range 43) 4236 | -8/Garrison | Discovered new exit (range 55) 4236 | -8/Garrison | Discovered new exit (range 12) 4236 | -8/Garrison | Discovered new exit (range 56) 4399 | -8/Garrison | Build established: Bothacker-Gunner 4615 | -8/Garrison | Garrison Relay disabled 4633 | -8/Garrison | Garrison Relay disabled 4635 | -8/Garrison | Garrison Relay disabled 4692 | -8/Garrison | Garrison Relay disabled 4789 | -8/Garrison | Core integrity fell below 50% 4912 | -8/Garrison | Entered Materials 4912 | -8/Materials | Accompanied by 1 ally 5629 | -8/Materials | Discovered new exit (range 16) 5712 | -8/Materials | First assault squad dispatched 5859 | -8/Materials | Identified exit to Garrison 5860 | -8/Materials | Entered Garrison 5876 | -8/Garrison | Triggered checkpoint 6160 | -8/Garrison | Garrison Relay disabled 6220 | -8/Garrison | Expanded RIF knowledge: Signal Jamming 6368 | -8/Garrison | Triggered checkpoint 6414 | -8/Garrison | Triggered checkpoint 6478 | -8/Garrison | Discovered new exit (range 10) 6512 | -8/Garrison | Triggered checkpoint 6534 | -8/Garrison | Garrison Relay disabled 6656 | -8/Garrison | Triggered checkpoint 6770 | -8/Garrison | Triggered checkpoint 6838 | -8/Garrison | Garrison Relay disabled 6872 | -8/Garrison | Garrison Relay disabled 6906 | -8/Garrison | Triggered checkpoint 7002 | -8/Garrison | Core integrity fell below 20% 7099 | -8/Garrison | Discovered new exit (range 11) 7129 | -8/Garrison | Entered Factory 7129 | -7/Factory | Accompanied by 5 allies 7129 | -7/Factory | Evolved 2 slots: Utility x2 7130 | -7/Factory | Identified exit to Storage 7130 | -7/Factory | Identified exit to Factory 8067 | -7/Factory | Cargo convoy interrupted 8130 | -7/Factory | Entered Storage 8551 | -7/Storage | Discovered exit to Factory (range 16) 8829 | -7/Storage | Build established: Bothacker-Tank 9077 | -7/Storage | Used back door to open Recycling access 9077 | -7/Storage | Discovered new exit (range 5) 9082 | -7/Storage | Entered Recycling 9400 | -7/Recycling | Discovered new exit (range 16) 9755 | -7/Recycling | Scanned before Scraplab entrance 9791 | -7/Recycling | Entered Scraplab 9802 | -7/Recycling | Discovered new exit (range 3) 9804 | -7/Recycling | Entered Scraptown 9804 | -7/Scraptown | System corruption cleaned by C-Scrubber 10129 | -7/Scraptown | Discovered new exit (range 7) 10222 | -7/Scraptown | Visited Cyclists 10250 | -7/Scraptown | Visited IN-MT5's Study 10282 | -7/Scraptown | Visited Awakened 10315 | -7/Scraptown | Turned away by UFD registrar 10358 | -7/Scraptown | Visited Bundlers 10418 | -7/Scraptown | Visited Spacefarers 10514 | -7/Scraptown | Visited Cave Peace 10732 | -7/Scraptown | Visited The Evicted 10814 | -7/Scraptown | Identified exit to Factory 10815 | -7/Scraptown | Entered Factory 10815 | -5/Factory | Evolved 4 slots: Propulsion x1, Utility x3 11202 | -5/Factory | Spotted B-75 Beast 11382 | -5/Factory | Identified exit to Garrison 11391 | -5/Factory | Entered Garrison 11431 | -5/Garrison | Triggered checkpoint 11512 | -5/Garrison | Garrison Relay disabled 11652 | -5/Garrison | Discovered new exit (range 10) 11673 | -5/Garrison | Expanded RIF knowledge: Coupler Efficiency 11740 | -5/Garrison | Garrison Relay disabled 11845 | -5/Garrison | Triggered checkpoint 11879 | -5/Garrison | Triggered checkpoint 11909 | -5/Garrison | Triggered checkpoint 11997 | -5/Garrison | Triggered checkpoint 12030 | -5/Garrison | Garrison Relay disabled 12101 | -5/Garrison | Discovered new exit (range 12) 12259 | -5/Garrison | Triggered checkpoint 12343 | -5/Garrison | Garrison Relay disabled 12479 | -5/Garrison | Discovered new exit (range 14) 12729 | -5/Garrison | Entered Factory 12729 | -5/Factory | Accompanied by 4 allies 13002 | -5/Factory | P-70 Sage assimilated allied Soldier 6b 13319 | -5/Factory | Found Mni. Smartbomb Launcher 13418 | -5/Factory | System corruption reached 10% 13874 | -5/Factory | Identified exit to Garrison 13874 | -5/Factory | Entered Garrison 14002 | -5/Garrison | Triggered checkpoint 14058 | -5/Garrison | Expanded RIF knowledge: Alert ID Control 14098 | -5/Garrison | Triggered checkpoint 14137 | -5/Garrison | Destroyed 7 combat bots 14264 | -5/Garrison | Garrison Relay disabled 14510 | -5/Garrison | Discovered new exit (range 10) 14564 | -5/Garrison | Triggered checkpoint 14655 | -5/Garrison | Lost 4 parts (2n2u) 14721 | -5/Garrison | Garrison Relay disabled 15031 | -5/Garrison | Build established: Botlord-Gunner 15296 | -5/Garrison | Triggered checkpoint 15318 | -5/Garrison | Triggered checkpoint 15396 | -5/Garrison | Triggered checkpoint 15459 | -5/Garrison | Discovered new exit (range 10) 15518 | -5/Garrison | Triggered checkpoint 15534 | -5/Garrison | Garrison Relay disabled 15761 | -5/Garrison | Discovered new exit (range 12) 15906 | -5/Garrison | Expanded RIF knowledge: Coupler Efficiency 15954 | -5/Garrison | Triggered checkpoint 16005 | -5/Garrison | Garrison Relay disabled 16096 | -5/Garrison | Spotted B-90 Cyclops 16110 | -5/Garrison | Spotted B-90 Cyclops 16147 | -5/Garrison | Entered Factory 16147 | -4/Factory | Evolved 2 slots: Utility x2 16148 | -4/Factory | Identified exit to Extension 16155 | -4/Factory | Lost 5 allies 16256 | -4/Factory | Spotted B-86 Titan 16268 | -4/Factory | Allies destroyed B-86 Titan 16543 | -4/Factory | Discovered new exit (range 105) 16588 | -4/Factory | Build established: Botlord-Tank 16841 | -4/Factory | Garrison activated, responded to threat 17364 | -4/Factory | Entered Extension 17365 | -4/Extension | Identified exit to Research 17365 | -4/Extension | Identified exit to Cetus 17484 | -4/Extension | Rescued a captive Derelict 17500 | -4/Extension | Rescued A7 17722 | -4/Extension | Lost 3 allies 17960 | -4/Extension | Spotted B-86 Titan 17996 | -4/Extension | Destroyed B-86 Titan 18011 | -4/Extension | Spotted B-86 Titan 18026 | -4/Extension | Allies destroyed B-86 Titan 18054 | -4/Extension | Lost 5 parts (2n2u1w) 18114 | -4/Extension | First assault squad dispatched 18485 | -4/Extension | Build established: Bothacker-Tank 18582 | -4/Extension | Rescued a captive Derelict 18629 | -4/Extension | Rescued a captive Derelict 18638 | -4/Extension | Rescued a captive Derelict 18685 | -4/Extension | Rescued a captive Derelict 18889 | -4/Extension | Disrupted transfer network 19014 | -4/Extension | Lost 4 allies 19032 | -4/Extension | Lost 5 parts (3u2w) 19054 | -4/Extension | Entered Cetus 19054 | -4/Cetus | Accompanied by 7 allies (A7) 19059 | -4/Cetus | Acquired a Cetus Manufacturing Module code from A7 19066 | -4/Cetus | Spotted Cetus Guard 19066 | -4/Cetus | Spotted Cetus Guard 19071 | -4/Cetus | Allies destroyed Cetus Guard 19073 | -4/Cetus | Allies destroyed Cetus Guard 19080 | -4/Cetus | Spotted Cetus Guard 19085 | -4/Cetus | Extracted ID and sensor layout for unrecognized location from A7's data core 19089 | -4/Cetus | Allies destroyed Cetus Guard 19322 | -4/Cetus | Started Cetus Manufacturing Module 19347 | -4/Cetus | Manufactured an Enhanced Grunt 19372 | -4/Cetus | Manufactured an Enhanced Grunt 19397 | -4/Cetus | Manufactured an Enhanced Grunt 19422 | -4/Cetus | Manufactured an Enhanced Grunt 19447 | -4/Cetus | Manufactured an Enhanced Grunt 19525 | -4/Cetus | Build established: Scavenger-Skirmisher 19544 | -4/Cetus | Discovered new exit (range 16) 19577 | -4/Cetus | Spotted Cetus Guard 19577 | -4/Cetus | Spotted Cetus Guard 19580 | -4/Cetus | Spotted Cetus Guard 19582 | -4/Cetus | Spotted Cetus Guard 19584 | -4/Cetus | Allies destroyed Cetus Guard 19594 | -4/Cetus | Allies destroyed Cetus Guard 19595 | -4/Cetus | Allies destroyed Cetus Guard 19597 | -4/Cetus | Allies destroyed Cetus Guard 19624 | -4/Cetus | Discovered exit to Research (range 15) 19632 | -4/Cetus | Met Revision 17 19725 | -4/Cetus | Identified exit to Archives 19765 | -4/Cetus | Entered Archives 19765 | -4/Archives | Accompanied by 10 allies 19833 | -4/Archives | Unable to access archive contents 19839 | -4/Archives | Discovered exit to Research (range 16) 19860 | -4/Archives | Discovered new exit (range 15) 19891 | -4/Archives | Identified exit to Hub_04(d) 19903 | -4/Archives | Entered Hub_04(d) 19903 | -4/Hub_04(d) | Accompanied by 8 allies 20083 | -4/Hub_04(d) | Discovered exit to Research (range 14) 20142 | -4/Hub_04(d) | Network Hub disabled 20544 | -4/Hub_04(d) | Discovered exit to Research (range 6) 20576 | -4/Hub_04(d) | Spotted Lightning 20576 | -4/Hub_04(d) | Spotted Lightning 20584 | -4/Hub_04(d) | Spotted Lightning 20592 | -4/Hub_04(d) | Entered Research 20592 | -3/Research | Evolved 2 slots: Power x1, Propulsion x1 20620 | -3/Research | Lost 4 allies 20792 | -3/Research | Revision forces began assault on 0b10 20802 | -3/Research | Met up with Revision 17++ 20863 | -3/Research | Spotted B-86 Titan 20952 | -3/Research | Found Prototype Launcher 20952 | -3/Research | Identified Adv. Micro-nuke Launcher 21292 | -3/Research | Research terminal network offline 21702 | -3/Research | Discovered new exit (range 11) 21805 | -3/Research | Discovered new exit (range 6) 21813 | -3/Research | Identified exit to Research 22228 | -3/Research | Spotted Executioner 22229 | -3/Research | Spotted Striker 22229 | -3/Research | Spotted Striker 22237 | -3/Research | Spotted Executioner 22246 | -3/Research | Spotted Striker 22247 | -3/Research | Spotted Striker 22260 | -3/Research | Identified exit to Quarantine 22262 | -3/Research | Entered Quarantine 22277 | -3/Quarantine | Lost 3 allies 22285 | -3/Quarantine | Found Prototype Device 22285 | -3/Quarantine | Identified Exp. Thermal Shield 22359 | -3/Quarantine | Found Alien Reactor 22359 | -3/Quarantine | Identified Matter Drive 22581 | -3/Quarantine | Build established: Scavenger-Tank 22630 | -3/Quarantine | System corruption reached 10% 22649 | -3/Quarantine | Repaired Centrium Medium Armor Plating? 23060 | -3/Quarantine | Found Alien Artifact 23060 | -3/Quarantine | Identified Phase Redirector 23104 | -3/Quarantine | Found Alien Impact Weapon 23104 | -3/Quarantine | Identified Core Stripper 23138 | -3/Quarantine | Found Alien Artifact 23138 | -3/Quarantine | Identified Terrabomb 23138 | -3/Quarantine | Used Terrabomb 23152 | -3/Quarantine | Found Terrabomb 23490 | -3/Quarantine | Found Alien Artifact 23727 | -3/Quarantine | Entered Research 23727 | -2/Research | Evolved 2 slots: Propulsion x1, Utility x1 24719 | -2/Research | Discovered new exit (range 6) 24756 | -2/Research | Identified exit to Access 24911 | -2/Research | Crushed by falling debris 24920 | -2/Research | Entered Access 24920 | -1/Access | Evolved 2 slots: Power x1, Propulsion x1 25023 | -1/Access | Build established: Scavenger-Skirmisher 25853 | -1/Access | Build established: Scavenger-Tank 25970 | -1/Access | Lost 4 parts (2n1u1w) 26001 | -1/Access | Destroyed 7 combat bots 26163 | -1/Access | Build established: Scavenger-Skirmisher 26170 | -1/Access | First assault squad dispatched 26186 | -1/Access | Discovered new exit (range 6) 26192 | -1/Access | Identified exit to Surface 26194 | *** | Escaped! Last Messages --------------- 26110_ K-01 Serf collects debris. 26112_ Acquired Med. Treads. 26113_ K-01 Serf collects debris. 26120_ System corrupted: Energy discharge (-172). 26135_ Detecting nearby Garrison Access. 26153_ GLRHZX37:3RIEATWP,K>Seal Access door sealed. 26170_ ZXMRO2,=:PEYB4EXKFYLXFDU 26170_ ALERT: Significant disruption in Zone 6Z, assault force dispatched. 26181_ Connecting with Terminal... >>Open(Door) Sealed Barrier opened. 26186_ The Access Shell folds into the floor. 26186_ EXIT=FOUND 26192_ EXIT=IDENTIFIED: SURFACE [Achievement: 40k Club] [Achievement: Overachiever] Map ----- +----------------------------------------------------+ | #????????????????????????????????????????? | | ##???????????????????????????????????????? | | #????????????????????????????????????????? | | ######?????????#?????????????????????????? | | #########???????????????????????????? | | " # ????????????????????????????? | | """ # ????????????????????????????? | | G # ????????????????????????????? | | """ # ????????????????????????????? | | " # ??"??????????????????????????? | | # ?????????????????????????????? | | # ????????????????????????????? | | + ????????????????????????????? | | +########## # ???? ???????????????????????? | | ???????# # ??????????????????????????? | | ???????# # ???????????????????????????? | | ??????????# # ??????????#????????????????? | | ???????"?## #########??????#????????????????????? | | ??????????# #?????###???????????????????????????? | | ????????#?# ####### ##########??????????????????? | | ??????????# """T""" "??????????????????? | | ??????????# """ """ "????BB????????????? | | ??????????# "????BB????????????? | | ???????"??# "??????????????????? | | ??????????# "" "??????????????????? | | ??????????# @" "??????????????????? | | ? ???? ?#?# "??????????????????? | | ??????????# "????BB????????????? | | ????????#?# "????BB????????????? | | ??????????# "??????????????????? | | ??????????# ####### ##########??????????????????? | | ??????????# #?????###???????????????????????????? | | ??????????# ###########?????#???????????????????? | | ??????#???# # ??????????????????????????? | | ??????????# # ??????????????????????????? | | ??????????# + ??????????????????????????? | | ??????????# # ??????????????????????????? | | ??????????# # """"" ??????????????????????????? | | ??????????# #""""""?? ??????????????????????????? | | ??????????# #"""""??????????????????????????????? | | ??????????# # """??????????????????????????????? | | ??????????# # ?????????????????????????????? | | ??????????# # =???????????????????????????????? | | ########### #???????????????????????????????????? | | #???????????????????????????????????? | | #???????????????????????????????????? | | ########### #???????????????????????????????????? | | ## #???????????????????????????????????? | | ## #???????????????????????????????????? | | ""T"" ## #???????????????????????????????????? | +----------------------------------------------------+ Best States ------------- Heat Dissipation 147 Energy Generation 65 Energy Capacity 690 Matter Stores 300 Matter Capacity 300 Sight Range 16 Robot Scan Range 16 Terrain Scan Range 16 Terrain Scan Density 10 Additional Mass Support 12 Armor Coverage 1650 Resistance: TH 30 Power Shielding 66 Weapon Cycling 25 Evasion (%) 40 Targeting Accuracy 8 Target Analysis 8 Recoil Reduction 7 Kinecelleration 40 Relay Coupler Types 6 Relay Coupler Value 220 Item Schematics ----------------- None Robot Schematics ------------------ None Fabricated ------------ Nothing Alien Tech Used ----------------- Matter Drive Phase Redirector Core Stripper Terrabomb Achievements -------------- 40k Club Beloved Error 47 Factory Defaults Generalissimo Infiltrator Overachiever Pwned Revising The Future Revolutionary Research Challenges ------------ None Game ------ Seed WarlordDamperArray Manual? 0 Play Time 05:11:57 Cumulative 93.8 hours Start 2024.12.18 @ 19:59:26 End 2024.12.19 @ 21:28:27 Sessions 3 Manual Loads 0 Difficulty Rogue Special Mode None Game No. 39 Rogue 39 Adventurer 0 Explorer 0 Win Type 0 Total 11 Types 10/0/0/1/0/0/0/0/0 Lore% 57 Gallery% 57 Achievement% 53 Wizard Run 0 Options --------- Layout 1 ASCII 1 Keyboard 0 Movement Vi Keybinds 0 Fullscreen 1 Font 18/SmallcapsGlow Map View 54x44 Zoom Use 0% Tactical HUD 1 Map Filters NONE Filters NONE Steam 0 RUN: 489e9387-447f-470d-9c3f-d73e83a88028